bitfinex-derivatives/quotes_BTCF0:USTF0_20250130
["timestamp","ask_amount","ask_price","bid_price","bid_amount"]
[1738231678647,0.552924,105210.0,105200.0,0.46724581]
[1738231681842,0.552924,105210.0,105200.0,0.3631691]
[1738231684853,0.551924,105210.0,105200.0,0.3631691]
[1738231685045,0.552924,105210.0,105200.0,0.3631691]
[1738231689145,0.3628,105210.0,105200.0,0.46724581]
[1738231689346,0.002,105210.0,105200.0,0.46724581]
[1738231689554,0.3608,105220.0,105200.0,0.27710481]
[1738231689745,0.5510416,105230.0,105210.0,0.29420071]
[1738231690058,0.5510416,105230.0,105220.0,0.253305]
[1738231690248,1.01591831,105230.0,105220.0,0.190105]
[1738231690554,0.9382016,105230.0,105220.0,0.190105]
[1738231690755,0.9382016,105230.0,105220.0,0.221505]
[1738231691059,0.0001426,105230.0,105220.0,0.32558171]
[1738231691245,0.3609426,105230.0,105220.0,0.32558171]
[1738231691449,0.3619426,105230.0,105220.0,0.32558171]
[1738231692250,0.3629426,105230.0,105220.0,0.32658171]
[1738231692751,0.5530296,105230.0,105220.0,0.222505]
[1738231698957,0.5530296,105230.0,105220.0,0.22999511]
[1738231701260,0.5530296,105230.0,105220.0,0.33407182]
[1738231701455,0.5530296,105230.0,105220.0,0.39797182]
[1738231702563,0.3629426,105230.0,105220.0,0.39797182]
[1738231703063,0.0021426,105230.0,105220.0,0.39797182]
[1738231703864,0.3629426,105230.0,105220.0,0.39797182]
[1738231706163,0.0021426,105230.0,105220.0,0.75877182]
[1738231706368,0.0021426,105230.0,105220.0,0.39797182]
[1738231707061,0.0021426,105230.0,105220.0,0.75877182]
[1738231707262,0.0078574,105240.0,105230.0,0.190087]
[1738231707564,0.0078574,105240.0,105230.0,0.32044371]
[1738231708567,0.0001426,105250.0,105230.0,0.59523342]
[1738231708767,0.3608,105260.0,105250.0,0.190051]
[1738231709071,0.3608,105260.0,105250.0,0.29412771]
[1738231711168,0.3608,105260.0,105250.0,0.29712771]
[1738231711362,0.3618,105260.0,105250.0,0.29712771]
[1738231712970,0.3618,105260.0,105250.0,0.32332771]
[1738231713161,0.3609426,105270.0,105250.0,0.13327671]
[1738231713364,0.3609426,105270.0,105260.0,0.35690971]
[1738231714467,0.3619426,105270.0,105260.0,0.38990971]
[1738231714867,0.0011426,105270.0,105260.0,0.39290971]
[1738231715378,0.3619426,105270.0,105260.0,0.39290971]
[1738231715871,0.3609426,105270.0,105260.0,0.39290971]
[1738231716066,0.3619426,105270.0,105260.0,0.39290971]
[1738231716263,0.3619426,105270.0,105260.0,0.41902971]
[1738231717169,0.3619426,105270.0,105260.0,0.193033]
[1738231717371,0.5841576,105270.0,105260.0,0.193033]
[1738231717969,0.5841576,105270.0,105260.0,0.29710971]
[1738231719982,0.5841576,105270.0,105260.0,0.193033]
[1738231720277,0.6163576,105270.0,105260.0,0.193033]
[1738231721379,0.0098574,105240.0,105200.0,0.71372563]
[1738231721575,0.550912,105220.0,105200.0,0.90385263]
[1738231721882,0.550912,105220.0,105210.0,0.10407671]
[1738231722382,0.550912,105220.0,105200.0,0.90385263]
[1738231722576,0.550924,105210.0,105200.0,0.61179152]
[1738231723285,0.550924,105210.0,105200.0,0.60979152]
[1738231723678,0.550924,105210.0,105200.0,0.1001426]
[1738231724283,0.551924,105210.0,105200.0,0.1001426]
[1738231724491,0.551924,105210.0,105200.0,0.21181211]
[1738231725292,0.552924,105210.0,105200.0,0.1077354]
[1738231726287,0.68316071,105210.0,105200.0,0.1077354]
[1738231726491,0.579084,105210.0,105200.0,0.1077354]
[1738231726689,0.68316071,105210.0,105200.0,0.1077354]
[1738231726897,0.190142,105200.0,105190.0,0.00142563]
[1738231727194,0.614942,105200.0,105190.0,0.00142563]
[1738231728394,0.615942,105200.0,105190.0,0.00142563]
[1738231728590,0.616942,105200.0,105190.0,0.00242563]
[1738231729494,0.72101871,105200.0,105190.0,0.001]
[1738231729796,0.616942,105200.0,105190.0,0.001]
[1738231731106,0.643022,105200.0,105190.0,0.001]
[1738231731901,0.643022,105200.0,105190.0,0.10507671]
[1738231732093,0.643022,105200.0,105190.0,0.001]
[1738231732500,0.643022,105200.0,105190.0,0.19116]
[1738231734803,0.643022,105200.0,105190.0,0.001]
[1738231736609,0.19016,105190.0,105180.0,0.30185851]
[1738231736807,0.55096,105190.0,105180.0,0.30185851]
[1738231737905,0.55196,105190.0,105180.0,0.30185851]
[1738231738102,0.55196,105190.0,105180.0,0.30285851]
[1738231738309,0.55296,105190.0,105180.0,0.30285851]
[1738231739096,0.55296,105190.0,105180.0,0.33355851]
[1738231739403,0.55296,105190.0,105180.0,0.36385851]
[1738231740410,0.55296,105190.0,105180.0,0.36260851]
[1738231740411,0.3628,105190.0,105180.0,0.36260851]
[1738231742714,0.002,105190.0,105180.0,0.36260851]
[1738231743007,0.002,105190.0,105180.0,0.46668522]
[1738231743198,0.002,105190.0,105180.0,0.82748522]
[1738231743903,0.002,105190.0,105180.0,0.36260851]
[1738231744100,0.002,105190.0,105180.0,0.82748522]
[1738231752124,0.002,105190.0,105180.0,1.05399585]
[1738231753817,0.012,105190.0,105180.0,1.05399585]
[1738231754428,0.012,105190.0,105180.0,0.82748522]
[1738231755328,0.012,105190.0,105180.0,0.86058522]
[1738231756027,0.3609426,105210.0,105180.0,0.67041322]
[1738231756229,0.3609426,105210.0,105200.0,0.29421871]
[1738231757014,0.5510666,105210.0,105200.0,0.29421871]
[1738231757228,0.5520666,105210.0,105200.0,0.29421871]
[1738231757624,0.5530666,105210.0,105200.0,0.190142]
[1738231758026,0.5530666,105210.0,105200.0,0.191142]
[1738231761840,0.3629426,105210.0,105200.0,0.191142]
[1738231765937,0.3629426,105210.0,105200.0,0.19945012]
[1738231766631,0.3629426,105210.0,105200.0,0.30352683]
[1738231767834,0.3629426,105210.0,105200.0,0.33402683]
[1738231770835,0.3629426,105210.0,105200.0,0.33416453]
[1738231773439,0.3629426,105210.0,105200.0,0.36506453]
[1738231774946,0.37208333,105240.0,105200.0,0.63979924]
[1738231775141,0.43628333,105240.0,105230.0,0.39824042]
[1738231775343,0.43628333,105240.0,105230.0,0.29416371]
[1738231775538,0.40328333,105240.0,105230.0,0.29416371]
[1738231775747,0.04248333,105240.0,105230.0,0.29416371]
[1738231776046,0.01128333,105240.0,105230.0,0.29416371]
[1738231776345,0.0098574,105240.0,105230.0,0.29516371]
[1738231776540,0.0098574,105240.0,105230.0,0.43174042]
[1738231776942,0.0098574,105240.0,105230.0,0.79254042]
[1738231777142,0.0001426,105250.0,105240.0,0.190069]
[1738231777454,0.0001426,105250.0,105240.0,0.42872242]
[1738231777640,0.3609426,105250.0,105240.0,0.42872242]
[1738231778045,0.3609426,105250.0,105240.0,0.46112242]
[1738231779052,0.3609426,105250.0,105240.0,0.29414571]
[1738231779241,0.3937426,105250.0,105240.0,0.29414571]
[1738231779445,0.3957426,105250.0,105240.0,0.29414571]
[1738231780947,0.00837799,105290.0,105280.0,0.189997]
[1738231781143,0.65077,105300.0,105280.0,0.189997]
[1738231781144,0.1,105300.0,105290.0,0.189979]
[1738231781344,0.1627,105300.0,105290.0,0.75893242]
[1738231781648,0.1,105300.0,105290.0,0.75893242]
[1738231781845,0.1,105300.0,105290.0,0.78513242]
[1738231782043,0.06955872,105300.0,105290.0,0.65485571]
[1738231782245,0.06955872,105300.0,105290.0,0.78533242]
[1738231782445,0.06955872,105300.0,105290.0,0.65485571]
[1738231783243,0.06955872,105300.0,105290.0,0.65685571]
[1738231784452,0.43035872,105300.0,105290.0,0.191979]
[1738231784649,0.43035872,105300.0,105290.0,0.29605571]
[1738231784841,0.06955872,105300.0,105290.0,0.29605571]
[1738231785045,0.43035872,105300.0,105290.0,0.29605571]
[1738231785246,0.06955872,105300.0,105290.0,0.29605571]
[1738231785950,0.06955872,105300.0,105290.0,0.191979]
[1738231787951,0.06955872,105300.0,105290.0,0.29605571]
[1738231790259,0.06955872,105300.0,105290.0,0.191979]
[1738231790459,0.09587872,105300.0,105290.0,0.191979]
[1738231793054,0.09587872,105300.0,105290.0,0.29605571]
[1738231793863,0.06955872,105300.0,105290.0,0.29605571]
[1738231794164,0.09583872,105300.0,105290.0,0.29605571]
[1738231795764,0.09583872,105300.0,105290.0,0.191979]
[1738231795963,0.67729972,105300.0,105290.0,0.191979]
[1738231800071,0.70769972,105300.0,105290.0,0.191979]
[1738231802670,0.70769972,105300.0,105290.0,0.29605571]
[1738231802968,0.68141972,105300.0,105290.0,0.29605571]
[1738231803163,0.70793972,105300.0,105290.0,0.29605571]
[1738231803870,0.32061972,105300.0,105290.0,0.29605571]
[1738231804069,0.34713972,105300.0,105290.0,0.29605571]
[1738231805566,0.34709972,105300.0,105290.0,0.29605571]
[1738231806476,0.34709972,105300.0,105290.0,0.65685571]
[1738231807158,0.34709972,105300.0,105290.0,0.29605571]
[1738231809470,0.32061972,105300.0,105290.0,0.65685571]
[1738231809668,0.34701972,105300.0,105290.0,0.65685571]
[1738231810366,0.34701972,105300.0,105290.0,0.552779]
[1738231810677,0.70781972,105300.0,105290.0,0.191979]
[1738231812071,0.34701972,105300.0,105290.0,0.191979]
[1738231812262,0.70781972,105300.0,105290.0,0.191979]
[1738231812466,0.68141972,105300.0,105290.0,0.191979]
[1738231812667,0.70781972,105300.0,105290.0,0.191979]
[1738231814769,0.34701972,105300.0,105290.0,0.191979]
[1738231815173,0.35061972,105300.0,105290.0,0.191979]
[1738231815480,0.35061972,105300.0,105290.0,0.29605571]
[1738231816877,0.10385872,105300.0,105290.0,0.65685571]
[1738231817077,0.09963872,105300.0,105290.0,0.71855571]
[1738231817267,0.07315872,105300.0,105290.0,0.71855571]
[1738231817467,0.09963872,105300.0,105290.0,0.71855571]
[1738231821975,0.62391972,105300.0,105290.0,0.002]
[1738231822181,1.03043214,105300.0,105280.0,0.00846355]
[1738231822376,0.65485571,105290.0,105280.0,0.0001426]
[1738231824785,0.65585571,105290.0,105280.0,0.0001426]
[1738231824987,0.65685571,105290.0,105280.0,0.0001426]
[1738231826482,0.68333571,105290.0,105280.0,0.0001426]
[1738231829181,0.69200108,105290.0,105280.0,0.0001426]
[1738231831500,0.190015,105270.0,105260.0,0.00876532]
[1738231831787,0.190051,105250.0,105240.0,0.29413671]
[1738231831987,0.190051,105250.0,105230.0,0.550884]
[1738231831988,0.190069,105240.0,105230.0,0.550884]
[1738231832178,0.577389,105240.0,105230.0,0.3027588]
[1738231832787,0.216589,105240.0,105230.0,0.3645588]
[1738231834077,0.217589,105240.0,105230.0,0.3645588]
[1738231834290,0.218589,105240.0,105230.0,0.3695588]
[1738231836683,0.218589,105240.0,105230.0,0.26548209]
[1738231837190,0.218589,105240.0,105230.0,0.3695588]
[1738231838079,0.002,105240.0,105230.0,0.7303588]
[1738231838279,0.002,105240.0,105230.0,0.7610588]
[1738231848185,0.002,105240.0,105230.0,0.86513551]
[1738231848601,0.0001426,105250.0,105240.0,0.39822242]
[1738231848897,0.0001426,105250.0,105240.0,0.75902242]
[1738231849690,0.0001426,105250.0,105240.0,0.76402242]
[1738231849889,0.0011426,105250.0,105240.0,0.76402242]
[1738231850591,0.0021426,105250.0,105240.0,0.76502242]
[1738231850792,0.0021426,105250.0,105240.0,0.66094571]
[1738231854406,0.0021426,105250.0,105240.0,0.83011857]
[1738231857899,0.0021426,105250.0,105240.0,0.93419528]
[1738231859511,0.0021426,105250.0,105240.0,0.83011857]
[1738231859809,0.0021426,105250.0,105240.0,0.66094571]
[1738231862309,0.0021426,105250.0,105240.0,0.556869]
[1738231862612,0.0021426,105250.0,105240.0,0.66094571]
[1738231870513,0.0021426,105250.0,105240.0,0.83011857]
[1738231872915,0.0021426,105250.0,105240.0,0.93419528]
[1738231873513,0.0021426,105250.0,105240.0,0.83011857]
[1738231873910,0.0021426,105250.0,105240.0,0.93419528]
[1738231874610,0.0021426,105250.0,105240.0,0.83011857]
[1738231874916,0.0021426,105250.0,105240.0,0.93419528]
[1738231875317,0.0021426,105250.0,105240.0,1.16070591]
[1738231878621,0.0957,105260.0,105250.0,0.190051]
[1738231878821,0.0957,105260.0,105250.0,0.65492771]
[1738231879720,0.0957,105260.0,105250.0,0.65892771]
[1738231881318,0.0967,105260.0,105250.0,0.66092771]
[1738231881915,0.0967,105260.0,105250.0,1.0566112]
[1738231884315,0.0967,105260.0,105250.0,0.66092771]
[1738231884522,0.0967,105260.0,105250.0,0.6697634]
[1738231894532,0.0967,105260.0,105250.0,0.63397536]
[1738231897927,0.0967,105260.0,105250.0,0.56568669]
[1738231898129,0.286733,105260.0,105250.0,0.37405955]
[1738231899633,0.286733,105260.0,105250.0,0.44234822]
[1738231899837,0.286733,105260.0,105250.0,0.37405955]
[1738231901536,0.286733,105260.0,105250.0,0.20488669]
[1738231901921,0.286733,105260.0,105250.0,0.01483569]
[1738231901922,0.71582167,105260.0,105250.0,0.01483569]
[1738231902127,0.71582167,105260.0,105250.0,0.006]
[1738231902527,0.98582167,105260.0,105250.0,0.006]
[1738231903526,0.71582167,105260.0,105250.0,0.196051]
[1738231906642,0.72489369,105260.0,105250.0,0.196051]
[1738231907538,0.72489369,105260.0,105250.0,0.006]
[1738231908125,0.71582167,105260.0,105250.0,0.006]
[1738231908442,0.673613,105260.0,105250.0,0.006]
[1738231908841,0.74190167,105260.0,105250.0,0.006]
[1738231909928,0.74186167,105260.0,105250.0,0.006]
[1738231910133,0.38106167,105260.0,105250.0,0.196051]
[1738231910547,0.74186167,105260.0,105250.0,0.196051]
[1738231911143,0.71582167,105260.0,105250.0,0.196051]
[1738231911344,0.312773,105260.0,105250.0,0.26433967]
[1738231911845,0.312773,105260.0,105250.0,0.196051]
[1738231913845,0.74186167,105260.0,105250.0,0.196051]
[1738231915349,0.71582167,105260.0,105250.0,0.006]
[1738231915643,0.74182167,105260.0,105250.0,0.006]
[1738231915852,1.01182167,105260.0,105250.0,0.006]
[1738231918648,0.74182167,105260.0,105250.0,0.006]
[1738231918849,0.81011034,105260.0,105250.0,0.006]
[1738231919050,0.74182167,105260.0,105250.0,0.006]
[1738231919450,0.81011034,105260.0,105250.0,0.006]
[1738231919652,0.74182167,105260.0,105250.0,0.006]
[1738231920351,0.81011034,105260.0,105250.0,0.006]
[1738231921048,0.74182167,105260.0,105250.0,0.006]
[1738231921351,0.81011034,105260.0,105250.0,0.006]
[1738231921651,0.74182167,105260.0,105250.0,0.006]
[1738231921839,0.71582167,105260.0,105250.0,0.196051]
[1738231922043,0.673453,105260.0,105250.0,0.196051]
[1738231922648,0.74174167,105260.0,105250.0,0.196051]
[1738231923641,0.647533,105260.0,105250.0,0.196051]
[1738231923849,0.673453,105260.0,105250.0,0.196051]
[1738231924151,0.74174167,105260.0,105250.0,0.196051]
[1738231924354,0.551833,105260.0,105250.0,0.26433967]
[1738231924555,0.577753,105260.0,105250.0,0.26433967]
[1738231925343,0.577753,105260.0,105250.0,0.196051]
[1738231925856,0.64604167,105260.0,105250.0,0.196051]
[1738231929955,0.64604167,105260.0,105250.0,0.006]
[1738231932051,0.71433034,105260.0,105250.0,0.006]
[1738231932454,0.64604167,105260.0,105250.0,0.006]
[1738231932660,0.0001426,105270.0,105250.0,0.52933734]
[1738231932856,0.00142564,105280.0,105270.0,0.190015]
[1738231933064,0.00142564,105280.0,105270.0,0.61910367]
[1738231933450,0.78561739,105300.0,105270.0,0.61910367]
[1738231933451,0.02596,105290.0,105280.0,0.189997]
[1738231933752,0.78561739,105300.0,105280.0,0.189997]
[1738231933952,0.02596,105290.0,105280.0,0.189997]
[1738231934155,0.38676,105290.0,105280.0,0.189997]
[1738231934862,0.38876,105290.0,105280.0,0.189997]
[1738231935751,0.02796,105290.0,105280.0,0.19910968]
[1738231936154,0.02896,105290.0,105280.0,0.19910968]
[1738231938357,0.003,105290.0,105280.0,0.19910968]
[1738231938557,0.02892,105290.0,105280.0,0.19910968]
[1738231943460,0.6578031,105290.0,105280.0,0.189997]
[1738231943665,0.6836831,105290.0,105280.0,0.189997]
[1738231944659,0.579659,105290.0,105280.0,0.189997]
[1738231944860,0.849659,105290.0,105280.0,0.189997]
[1738231946571,0.579659,105290.0,105280.0,0.189997]
[1738231947071,0.849659,105290.0,105280.0,0.189997]
[1738231950672,0.823779,105290.0,105280.0,0.189997]
[1738231950868,0.553779,105290.0,105280.0,0.189997]
[1738231951070,0.579659,105290.0,105280.0,0.189997]
[1738231951578,0.218859,105290.0,105280.0,0.189997]
[1738231952171,0.003,105290.0,105280.0,0.2940211]
[1738231952471,0.003,105290.0,105280.0,0.6851211]
[1738231952970,0.003,105290.0,105280.0,0.7181211]
[1738231956077,0.003,105290.0,105280.0,0.7486211]
[1738231960782,0.003,105290.0,105280.0,0.78108118]
[1738231961677,0.003,105290.0,105280.0,0.84932327]
[1738231961877,0.003,105290.0,105280.0,0.78108118]
[1738231962583,0.003,105290.0,105280.0,0.84932327]
[1738231963583,0.003,105290.0,105280.0,0.78108118]
[1738231963980,0.003,105290.0,105280.0,0.80696118]
[1738231964478,0.003,105290.0,105280.0,0.87520327]
[1738231964685,0.003,105290.0,105280.0,0.77443972]
[1738231964979,0.001,105290.0,105280.0,0.77443972]
[1738231965381,0.07330132,105300.0,105290.0,0.189979]
[1738231965585,0.07330132,105300.0,105290.0,0.65474172]
[1738231968071,0.07330132,105300.0,105290.0,0.65674172]
[1738231971078,0.07330132,105300.0,105290.0,0.66571128]
[1738231984485,0.07330132,105300.0,105290.0,0.56174856]
[1738231984684,0.07330132,105300.0,105290.0,0.62997772]
[1738231988600,0.07330132,105300.0,105290.0,0.69820688]
[1738231992190,0.07330132,105300.0,105290.0,0.72408688]
[1738231998105,0.07330132,105300.0,105290.0,0.69820688]
[1738232003100,0.07330132,105300.0,105290.0,0.62997772]
[1738232004111,0.33149148,105300.0,105290.0,0.56174856]
[1738232004306,0.35976232,105300.0,105290.0,0.62997772]
[1738232004707,0.62976232,105300.0,105290.0,0.62997772]
[1738232007202,0.35976232,105300.0,105290.0,0.62997772]
[1738232009015,0.19568132,105300.0,105290.0,0.62997772]
[1738232009212,0.16980132,105300.0,105290.0,0.62997772]
[1738232011310,0.13930132,105300.0,105290.0,0.62997772]
[1738232011622,0.07330132,105300.0,105290.0,0.69820688]
[1738232017112,0.05530026,105300.0,105290.0,0.69820688]
[1738232036126,0.05530026,105300.0,105290.0,0.72408688]
[1738232039427,0.05530026,105300.0,105290.0,0.69820688]
[1738232039631,0.05530026,105300.0,105290.0,0.72408688]
[1738232040625,0.05530026,105300.0,105290.0,0.89489041]
[1738232040825,0.05530026,105300.0,105290.0,0.86901041]
[1738232041128,0.05530026,105300.0,105290.0,0.89489041]
[1738232042834,0.05530026,105300.0,105290.0,0.86901041]
[1738232043029,0.05530026,105300.0,105290.0,0.89489041]
[1738232046236,0.05530026,105300.0,105290.0,0.86901041]
[1738232046439,0.05530026,105300.0,105290.0,0.89489041]
[1738232047034,0.05530026,105300.0,105290.0,0.82666125]
[1738232047241,0.05530026,105300.0,105290.0,0.80078125]
[1738232047632,0.05530026,105300.0,105290.0,0.62997772]
[1738232049237,0.15020026,105300.0,105290.0,0.62997772]
[1738232050148,0.34016126,105300.0,105290.0,0.43999872]
[1738232050437,0.34016126,105300.0,105290.0,0.62997772]
[1738232050941,0.15020026,105300.0,105290.0,0.62997772]
[1738232057254,0.34016126,105300.0,105290.0,0.62997772]
[1738232057842,0.36604126,105300.0,105290.0,0.62997772]
[1738232062451,0.43427042,105300.0,105290.0,0.56174856]
[1738232062951,0.36604126,105300.0,105290.0,0.56174856]
[1738232063153,0.40839042,105300.0,105290.0,0.56174856]
[1738232063354,0.43427042,105300.0,105290.0,0.56174856]
[1738232063749,0.36604126,105300.0,105290.0,0.56174856]
[1738232070155,0.36604126,105300.0,105290.0,0.62997772]
[1738232071653,0.34016126,105300.0,105290.0,0.62997772]
[1738232071854,0.17608026,105300.0,105290.0,0.62997772]
[1738232072252,0.14418026,105300.0,105290.0,0.62997772]
[1738232077252,0.08118026,105300.0,105290.0,0.62997772]
[1738232079362,0.32530026,105300.0,105290.0,0.62997772]
[1738232079662,0.32530026,105300.0,105290.0,0.69820688]
[1738232080158,0.32530026,105300.0,105290.0,0.62997772]
[1738232081362,0.05530026,105300.0,105290.0,0.62997772]
[1738232083869,0.08840026,105300.0,105290.0,0.62997772]
[1738232084055,0.31016126,105300.0,105290.0,0.62997772]
[1738232084265,0.58016126,105300.0,105290.0,0.62997772]
[1738232084457,0.39020026,105300.0,105290.0,0.62997772]
[1738232085158,0.31016126,105300.0,105290.0,0.62997772]
[1738232086065,0.12020026,105300.0,105290.0,0.62997772]
[1738232086455,0.12020026,105300.0,105290.0,0.37176956]
[1738232086456,0.37839042,105300.0,105290.0,0.37176956]
[1738232086656,0.31016126,105300.0,105290.0,0.37176956]
[1738232087359,0.37839042,105300.0,105290.0,0.37176956]
[1738232088260,0.31016126,105300.0,105290.0,0.37176956]
[1738232088661,0.31016126,105300.0,105290.0,0.56174856]
[1738232088662,0.37839042,105300.0,105290.0,0.56174856]
[1738232089262,0.31016126,105300.0,105290.0,0.62997772]
[1738232089463,0.37839042,105300.0,105290.0,0.56174856]
[1738232090468,0.31016126,105300.0,105290.0,0.62997772]
[1738232091571,0.37839042,105300.0,105290.0,0.56174856]
[1738232093072,0.31016126,105300.0,105290.0,0.56174856]
[1738232093775,0.37839042,105300.0,105290.0,0.56174856]
[1738232098766,0.33600126,105300.0,105290.0,0.56174856]
[1738232099474,0.40423042,105300.0,105290.0,0.56174856]
[1738232099670,0.33600126,105300.0,105290.0,0.62997772]
[1738232100674,0.40423042,105300.0,105290.0,0.62997772]
[1738232103177,0.33600126,105300.0,105290.0,0.62997772]
[1738232104473,0.31016126,105300.0,105290.0,0.62997772]
[1738232104670,0.33600126,105300.0,105290.0,0.62997772]
[1738232104870,0.30420126,105300.0,105290.0,0.62997772]
[1738232105178,0.11424026,105300.0,105290.0,0.62997772]
[1738232107878,0.08114026,105300.0,105290.0,0.62997772]
[1738232110081,0.05530026,105300.0,105290.0,0.62997772]
[1738232110276,0.05530026,105300.0,105290.0,0.69820688]
[1738232123382,0.01537244,105300.0,105290.0,0.69820688]
[1738232124581,0.0641,105320.0,105290.0,0.57645704]
[1738232124788,0.05846463,105330.0,105320.0,0.189925]
[1738232125087,0.03262463,105330.0,105320.0,0.68718332]
[1738232125793,0.3611826,105340.0,105330.0,0.189907]
[1738232125992,0.3353426,105340.0,105330.0,0.61893616]
[1738232127187,0.0653426,105340.0,105330.0,0.68716532]
[1738232127381,0.0703426,105340.0,105330.0,0.68716532]
[1738232127581,0.0703426,105340.0,105330.0,0.61893616]
[1738232127887,0.0723426,105340.0,105330.0,0.61893616]
[1738232128490,0.0723426,105340.0,105330.0,0.68716532]
[1738232130591,0.0723426,105340.0,105330.0,0.61893616]
[1738232166326,0.33046076,105340.0,105330.0,0.3608]
[1738232166523,0.69126076,105340.0,105320.0,1.02669826]
[1738232166828,0.0302,105330.0,105320.0,1.02669826]
[1738232168027,0.0302,105330.0,105320.0,0.62815669]
[1738232168028,0.0322,105330.0,105320.0,0.62815669]
[1738232170626,0.0322,105330.0,105320.0,0.69638585]
[1738232170827,0.0322,105330.0,105320.0,0.62815669]
[1738232172525,0.31613616,105330.0,105320.0,0.19912753]
[1738232173627,0.67693616,105330.0,105320.0,0.19912753]
[1738232176920,0.67693616,105330.0,105320.0,0.00920453]
[1738232177120,0.67693616,105330.0,105310.0,0.1900756]
[1738232177121,0.189925,105320.0,105310.0,0.1900756]
[1738232177426,0.32175416,105320.0,105310.0,0.1900756]
[1738232177726,0.68255416,105320.0,105310.0,0.1993442]
[1738232178123,0.75078332,105320.0,105310.0,0.1993442]
[1738232178328,0.75078332,105320.0,105310.0,0.2003442]
[1738232178526,0.75078332,105320.0,105310.0,0.0011426]
[1738232178919,0.56085832,105320.0,105300.0,0.19138028]
[1738232179129,0.67587216,105310.0,105300.0,0.19138028]
[1738232180033,0.67587216,105310.0,105300.0,0.189956]
[1738232180535,0.67687216,105310.0,105300.0,0.197956]
[1738232180838,0.67687216,105310.0,105300.0,0.199956]
[1738232181225,0.31607216,105310.0,105300.0,0.199956]
[1738232181526,0.67687216,105310.0,105300.0,0.197956]
[1738232181730,0.67687216,105310.0,105300.0,0.200956]
[1738232182634,0.94687216,105310.0,105300.0,0.200956]
[1738232185233,0.94687216,105310.0,105300.0,0.011]
[1738232185938,0.94687216,105310.0,105300.0,0.200961]
[1738232191238,0.92107216,105310.0,105300.0,0.200961]
[1738232191545,0.94691216,105310.0,105300.0,0.200961]
[1738232193345,0.67691216,105310.0,105300.0,0.200961]
[1738232194049,0.67691216,105310.0,105300.0,0.011]
[1738232194245,0.94691216,105310.0,105300.0,0.011]
[1738232198145,0.94691216,105310.0,105300.0,0.200961]
[1738232199347,0.67691216,105310.0,105300.0,0.011]
[1738232199650,0.31611216,105310.0,105300.0,0.200961]
[1738232200143,0.29027216,105310.0,105300.0,0.200961]
[1738232200343,0.31611216,105310.0,105300.0,0.200961]
[1738232201550,0.67691216,105310.0,105300.0,0.200961]
[1738232202450,0.31611216,105310.0,105300.0,0.200961]
[1738232202651,0.67691216,105310.0,105300.0,0.200961]
[1738232208950,0.74514132,105310.0,105300.0,0.011]
[1738232210641,1.05792003,105310.0,105300.0,0.011]
[1738232218260,0.189961,105300.0,105290.0,0.0001426]
[1738232218457,0.74991932,105300.0,105290.0,0.0001426]
[1738232218959,1.01991932,105300.0,105290.0,0.0001426]
[1738232219765,1.02091932,105300.0,105290.0,0.0091426]
[1738232220760,1.02191932,105300.0,105290.0,0.0151426]
[1738232223368,1.03140438,105300.0,105290.0,0.0151426]
[1738232224672,0.76140438,105300.0,105290.0,0.0151426]
[1738232225364,1.03140438,105300.0,105290.0,0.0151426]
[1738232228473,1.09963354,105300.0,105290.0,0.0151426]
[1738232229564,1.03140438,105300.0,105290.0,0.0151426]
[1738232230265,0.76140438,105300.0,105290.0,0.0151426]
[1738232231273,0.78724438,105300.0,105290.0,0.0151426]
[1738232231673,0.76140438,105300.0,105290.0,0.0151426]
[1738232231874,0.78724438,105300.0,105290.0,0.0151426]
[1738232232176,1.05724438,105300.0,105290.0,0.0151426]
[1738232237183,0.78724438,105300.0,105290.0,0.0151426]
[1738232237673,0.85547354,105300.0,105290.0,0.0151426]
[1738232238786,0.78724438,105300.0,105290.0,0.0151426]
[1738232240783,0.85547354,105300.0,105290.0,0.0151426]
[1738232241879,0.82963354,105300.0,105290.0,0.0151426]
[1738232242085,0.85547354,105300.0,105290.0,0.0151426]
[1738232242390,0.78724438,105300.0,105290.0,0.0151426]
[1738232245193,0.78524438,105300.0,105290.0,0.0001426]
[1738232256891,0.85347354,105300.0,105290.0,6e-07]
[1738232257399,0.66351254,105300.0,105260.0,0.0962]
[1738232257595,0.61904416,105270.0,105260.0,0.0962]
[1738232257792,0.64488416,105270.0,105260.0,0.10564279]
[1738232258495,0.64488416,105270.0,105260.0,0.0631]
[1738232258698,0.71311332,105270.0,105260.0,0.0322]
[1738232259004,0.71311332,105270.0,105250.0,0.0001426]
[1738232259005,0.190033,105260.0,105250.0,0.0001426]
[1738232259191,0.68729132,105260.0,105250.0,0.0001426]
[1738232259392,0.95729132,105260.0,105250.0,0.0001426]
[1738232260599,1.02229132,105260.0,105250.0,0.0111426]
[1738232261304,1.02129132,105260.0,105250.0,0.0051426]
[1738232261507,1.02229132,105260.0,105250.0,0.0111426]
[1738232263706,1.02129132,105260.0,105250.0,0.0081426]
[1738232264306,0.75129132,105260.0,105250.0,0.0081426]
[1738232265704,0.75129132,105260.0,105250.0,6e-07]
[1738232265705,0.81952048,105260.0,105250.0,6e-07]
[1738232266898,0.190051,105250.0,105240.0,0.0001426]
[1738232267207,0.74494932,105250.0,105240.0,0.0001426]
[1738232267903,0.190088,105230.0,105220.0,0.032]
[1738232268092,1.07402632,105230.0,105220.0,0.032]
[1738232269506,1.07502632,105230.0,105220.0,0.032]
[1738232269904,1.07602632,105230.0,105220.0,0.032]
[1738232270105,1.34602632,105230.0,105220.0,0.032]
[1738232270610,1.34502632,105230.0,105220.0,0.032]
[1738232271207,0.98091716,105230.0,105220.0,0.222106]
[1738232271404,1.00679716,105230.0,105220.0,0.286606]
[1738232272603,1.04272827,105230.0,105220.0,0.286606]
[1738232280412,1.31268827,105230.0,105220.0,0.286606]
[1738232280614,0.912688,105230.0,105220.0,0.286606]
[1738232280817,0.216928,105230.0,105220.0,0.39076627]
[1738232281120,0.216928,105230.0,105220.0,0.286606]
[1738232282423,0.191088,105230.0,105220.0,0.286606]
[1738232282718,0.216968,105230.0,105220.0,0.286606]
[1738232285313,0.216968,105230.0,105220.0,0.29623388]
[1738232288922,0.486968,105230.0,105220.0,0.29623388]
[1738232292628,0.28530743,105230.0,105220.0,0.36457331]
[1738232294126,0.216968,105230.0,105220.0,0.36457331]
[1738232299422,0.216968,105230.0,105220.0,0.33147331]
[1738232300429,0.216968,105230.0,105220.0,0.30007331]
[1738232300630,0.28530743,105230.0,105220.0,0.23173388]
[1738232301431,0.25942743,105230.0,105220.0,0.23173388]
[1738232301625,0.28526743,105230.0,105220.0,0.23173388]
[1738232302229,0.28526743,105230.0,105220.0,0.19973388]